bitfinex/quotes_ETHUSD_20260103
["timestamp","ask_amount","ask_price","bid_price","bid_amount"]
[1767427651444,0.64915025,3088.2,3087.8,0.002]
[1767427652349,0.64915025,3088.2,3087.2,2.28733423]
[1767427652350,2.46927729,3088.0,3087.2,2.28733423]
[1767427652547,5.21671926,3087.8,3087.1,0.0028008]
[1767427652729,2.46927729,3087.7,3087.1,0.0028008]
[1767427652928,6.47752298,3087.6,3087.1,0.0028008]
[1767427653149,6.47752298,3087.6,3087.1,2.29013503]
[1767427653817,2.46927729,3087.5,3087.1,0.0008008]
[1767427654018,2.47007809,3087.5,3087.1,0.0008008]
[1767427654822,5.49568482,3087.0,3086.1,2.28633423]
[1767427655028,10.07543383,3086.9,3086.1,2.28633423]
[1767427655216,4.08849593,3086.9,3086.1,2.28633423]
[1767427655413,0.849,3086.9,3086.2,2.28733423]
[1767427655681,0.849,3086.9,3086.4,2.28733423]
[1767427655867,0.00080088,3087.0,3086.6,2.28733423]
[1767427656352,0.0008008,3087.5,3086.6,2.28813519]
[1767427656537,0.0008008,3087.5,3086.8,2.28733423]
[1767427656718,0.0008008,3087.5,3087.0,2.28733423]
[1767427657139,0.0008008,3087.5,3087.1,2.28733423]
[1767427657343,0.0008008,3087.5,3087.1,2.28633423]
[1767427659036,0.0008008,3087.5,3087.0,2.28933423]
[1767427659820,0.0008008,3087.5,3087.0,0.002]
[1767427660027,3.72456162,3087.5,3087.0,0.002]
[1767427660450,2.46927729,3087.2,3086.6,0.00080096]
[1767427660654,0.849,3087.1,3086.6,0.00080096]
[1767427660830,3.2390098,3087.4,3086.7,2.28733423]
[1767427661036,0.849,3087.3,3086.7,2.28733423]
[1767427662231,0.0008008,3087.5,3086.8,2.28733423]
[1767427662430,0.0008008,3087.5,3087.0,2.28633423]
[1767427663131,0.0008008,3087.5,3087.1,2.31972709]
[1767427663457,0.0008008,3087.5,3087.1,2.28733423]
[1767427665752,0.0008008,3087.5,3087.1,2.28613589]
[1767427669770,0.64871785,3087.5,3086.9,2.28733423]
[1767427671359,2.46927729,3087.4,3086.8,0.002]
[1767427671565,3.23918113,3087.2,3086.8,0.002]
[1767427673068,6.47836226,3087.2,3086.7,2.28733423]
[1767427673389,0.00080096,3087.0,3086.2,3.2401894]
[1767427673569,5.70946924,3087.0,3086.3,2.28733423]
[1767427673864,8.94886023,3087.0,3086.3,2.28733423]
[1767427674244,11.6963022,3087.0,3086.3,2.28733423]
[1767427674448,1.21051203,3086.9,3086.3,2.28933423]
[1767427674771,0.849,3086.8,3086.3,2.28933423]
[1767427675073,6.06571926,3086.8,3086.3,0.002]
[1767427675436,2.46927729,3086.7,3085.9,0.002]
[1767427675658,3.23981079,3086.6,3085.9,2.28933423]
[1767427675877,3.23981079,3086.6,3083.4,0.00080024]
[1767427675878,0.0902149,3085.3,3083.4,0.00080024]
[1767427676069,0.00080016,3084.9,3084.2,2.28733423]
[1767427676237,0.00080016,3084.9,3083.4,0.03323197]
[1767427676238,0.00080016,3084.9,3084.3,0.03242226]
[1767427676440,0.85,3085.7,3085.2,2.28733423]
[1767427676659,2.46927729,3086.3,3085.2,2.28733423]
[1767427676660,0.85,3085.8,3085.2,2.28733423]
[1767427677254,1.2097442,3085.8,3085.0,0.00080024]
[1767427677871,4.45040623,3085.8,3085.0,0.00080024]
[1767427679343,4.45040623,3085.8,3085.0,2.28813447]
[1767427679539,2.36348787,3085.7,3085.0,0.00080024]
[1767427679780,3.24117589,3085.3,3084.6,2.31580202]
[1767427679943,4.09117589,3085.3,3084.6,2.31580202]
[1767427680279,0.00080024,3085.4,3084.7,2.31480202]
[1767427680468,0.85080024,3085.4,3084.7,2.31480202]
[1767427680770,0.85,3085.8,3085.0,0.00080032]
[1767427681252,5.11092984,3085.6,3084.6,2.31580202]
[1767427681454,2.74744197,3085.3,3084.6,2.31580202]
[1767427681656,3.59744197,3085.3,3084.6,2.31580202]
[1767427682170,0.85,3085.3,3084.6,5.55770769]
[1767427682375,0.00080024,3084.9,3084.5,2.31580202]
[1767427682554,0.00080032,3085.4,3084.6,2.31580202]
[1767427682555,6.48301868,3085.4,3084.6,2.31580202]
[1767427682756,4.74021137,3085.4,3084.6,2.31580202]
[1767427683477,4.74021137,3085.4,3085.0,0.002]
[1767427684051,0.00080032,3085.4,3085.0,0.002]
[1767427684363,0.00080056,3086.2,3085.2,2.31480202]
[1767427684550,0.85,3086.1,3085.2,2.31380202]
[1767427684980,3.24104617,3086.2,3085.2,2.31380202]
[1767427685286,0.00080056,3086.2,3085.2,2.31380202]
[1767427685578,0.85,3086.1,3085.1,2.31580202]
[1767427686186,3.24044069,3086.0,3085.1,2.31580202]
[1767427686358,6.48088138,3086.0,3085.1,2.31580202]
[1767427686763,3.24044069,3086.0,3085.1,5.55718639]
[1767427686966,6.48088138,3086.0,3085.1,2.31580202]
[1767427687171,0.73308814,3085.9,3085.1,2.31580202]
[1767427687660,0.73308814,3085.9,3085.1,5.55717571]
[1767427688803,0.85,3085.8,3085.2,2.31580202]
[1767427689298,3.21348787,3085.8,3085.0,0.0018004]
[1767427689790,8.84424157,3086.1,3085.0,2.31760242]
[1767427689961,0.85,3086.0,3085.2,2.31580202]
[1767427690501,2.36348787,3085.9,3085.0,0.0018004]
[1767427690685,3.24075574,3085.7,3085.0,0.0018004]
[1767427690859,3.24075574,3085.7,3085.0,2.31760242]
[1767427691481,3.56204335,3085.8,3085.0,2.31760242]
[1767427691692,0.32134879,3085.8,3085.0,2.31760242]
[1767427691880,0.85,3085.7,3085.0,2.31760242]
[1767427692276,0.85,3085.6,3085.0,2.31760242]
[1767427692693,0.85,3085.6,3085.2,2.31580202]
[1767427692983,0.85,3085.7,3085.2,2.31580202]
[1767427693185,0.85,3085.9,3085.4,2.31480202]
[1767427693488,0.001,3086.1,3085.4,2.31480202]
[1767427693789,0.85,3085.9,3085.4,2.31480202]
[1767427694105,0.85,3085.9,3085.1,2.31459256]
[1767427694264,3.21348787,3085.9,3085.1,2.31359256]
[1767427694467,0.32134879,3085.8,3085.1,2.31359256]
[1767427694689,0.85,3085.9,3085.1,2.31359256]
[1767427694869,3.24065072,3085.8,3085.1,2.31237302]
[1767427695696,4.09056245,3085.9,3085.1,2.31237302]
[1767427695697,4.09059214,3085.9,3085.1,5.55373295]
[1767427695943,0.85,3085.9,3085.2,2.34821482]
[1767427696196,4.09057556,3085.9,3085.2,2.31580202]
[1767427696797,4.82376893,3085.9,3085.2,2.31580202]
[1767427696994,8.06434449,3085.9,3085.2,2.31580202]
[1767427697200,4.82376893,3085.9,3085.2,2.31580202]
[1767427697773,0.001,3086.1,3085.3,2.34821377]
[1767427698194,0.001,3086.1,3085.3,2.31580202]
[1767427698880,0.001,3086.1,3085.5,2.31580202]
[1767427701176,0.001,3086.1,3085.7,2.15640282]
[1767427701597,0.001,3086.1,3085.7,2.31580202]
[1767427702099,0.001,3086.1,3085.7,2.31454305]
[1767427702284,0.001,3086.1,3085.5,2.31580202]
[1767427702699,3.33404849,3086.1,3085.1,0.002]
[1767427702907,2.36348787,3086.0,3085.1,2.31780202]
[1767427703454,8.84457927,3085.9,3085.1,0.002]
[1767427703597,0.85,3085.8,3085.1,0.002]
[1767427703797,0.96945793,3085.7,3085.1,0.002]
[1767427704299,3.3329458,3085.7,3085.1,0.002]
[1767427705304,3.3329458,3085.7,3085.1,0.001]
[1767427705507,3.24086077,3085.6,3085.1,0.001]
[1767427705814,0.85,3085.8,3085.1,2.31680202]
[1767427706310,0.85,3085.7,3085.1,2.31680202]
[1767427707014,5.60394139,3086.0,3085.0,0.0018004]
[1767427707015,3.21448787,3086.1,3085.0,2.31760242]
[1767427707216,6.80241022,3086.0,3085.1,2.34821588]
[1767427707626,3.56196953,3086.0,3085.1,5.58950268]
[1767427707931,3.56196953,3086.0,3085.2,2.31580202]
[1767427708526,0.85,3085.9,3085.2,2.31580202]
[1767427709023,0.85,3085.9,3085.2,2.31458897]
[1767427709812,0.85,3085.9,3085.2,3.24122376]
[1767427710117,0.85,3085.9,3085.3,2.48421673]
[1767427710612,0.001,3086.1,3085.4,0.01817881]
[1767427710815,0.001,3086.1,3085.5,2.48421673]
[1767427712088,0.001,3086.1,3085.6,2.48421673]
[1767427714098,0.001,3086.1,3085.6,2.51662533]
[1767427714298,0.001,3086.1,3085.8,2.48421673]
[1767427714615,0.001,3086.1,3086.0,2.48421673]
[1767427715422,5.69142624,3086.9,3085.9,0.89657282]
[1767427715423,2.45191675,3087.2,3086.2,2.48421673]
[1767427715591,0.85,3087.1,3086.2,2.48421673]
[1767427715928,3.24022049,3087.0,3086.2,2.48421673]
[1767427716310,3.24022049,3087.0,3086.2,5.72438042]
[1767427716821,3.24022049,3087.0,3086.3,2.48421673]
[1767427717003,3.24022049,3087.0,3086.3,2.48297758]
[1767427717321,0.00080096,3087.0,3086.3,2.48297758]
[1767427718724,0.00080096,3087.0,3086.3,5.72305247]
[1767427718919,0.00080096,3087.0,3086.4,2.48421673]
[1767427720607,0.00080096,3087.0,3086.6,2.48421673]
[1767427722632,0.00080096,3087.0,3086.7,3.23970583]
[1767427722835,0.00080096,3087.0,3086.8,2.48421673]
[1767427723059,0.001,3087.7,3086.7,6.47941166]
[1767427723060,0.001,3087.7,3087.2,2.48421673]
[1767427726353,0.001,3087.7,3087.2,5.72339072]
[1767427726540,0.001,3087.7,3087.3,2.48421673]
[1767427727055,0.001,3087.7,3087.4,2.48421673]
[1767427727349,0.001,3087.7,3087.2,0.89634489]
[1767427727547,0.001,3087.7,3087.1,2.48501761]
[1767427728212,2.45291675,3087.7,3087.1,0.00080088]
[1767427729029,5.69163984,3087.7,3087.1,0.00080088]
[1767427730048,3.30191675,3087.6,3087.1,0.00080088]
[1767427731542,3.30191675,3087.6,3087.1,2.48501761]
[1767427731543,0.85,3087.6,3087.1,2.48501761]
[1767427731719,0.85,3087.6,3087.1,2.51741047]
[1767427732132,0.851,3087.7,3087.2,2.48421673]
[1767427733338,4.08966939,3087.7,3087.2,2.48421673]
[1767427733639,0.851,3087.7,3087.2,2.48421673]
[1767427735254,0.001,3087.7,3087.3,2.48421673]
[1767427735755,0.001,3087.7,3087.1,1.10080088]
[1767427736049,0.00080088,3087.5,3087.1,1.09980088]
[1767427737751,0.00080088,3087.5,3087.1,4.33907968]
[1767427737955,0.00080088,3087.5,3087.1,6.82329641]
[1767427738855,0.00080088,3087.5,3087.1,3.58401761]
[1767427739366,0.00080088,3087.5,3087.1,6.82326869]
[1767427739548,0.00180088,3087.5,3087.1,6.82326869]
[1767427740552,0.00180088,3087.5,3087.2,2.41044134]
[1767427740757,0.00180088,3087.5,3087.3,2.41044134]
[1767427741257,0.00180048,3088.3,3087.4,2.44283105]
[1767427741553,0.85,3088.2,3087.4,2.44283105]
[1767427742152,0.85,3088.2,3087.5,3.23886639]
[1767427742368,4.08813728,3088.2,3087.5,2.41044134]
[1767427743355,0.85,3088.2,3087.5,2.41044134]
[1767427743652,0.85,3088.2,3087.6,2.41044134]
[1767427743850,0.00180048,3088.3,3087.6,2.41044134]
[1767427744051,0.85080048,3088.3,3087.6,2.41044134]
[1767427744353,0.00180048,3088.3,3087.7,2.41044134]
[1767427746453,0.00180048,3088.3,3087.7,5.64908749]
[1767427746637,0.00180048,3088.3,3087.7,3.0674726]
[1767427746837,0.00180048,3088.3,3087.7,6.30612225]
[1767427747048,0.00180048,3088.3,3087.8,2.44282685]
[1767427748483,0.00180048,3088.3,3088.0,2.41044134]
[1767427750763,0.00180048,3088.3,3088.1,3.2382371]
[1767427750968,0.00180048,3088.3,3088.1,6.53739097]
[1767427751868,0.00180048,3088.3,3088.1,0.88871253]
[1767427752068,0.00180048,3088.3,3087.7,2.41044134]
[1767427752242,0.00180048,3088.3,3088.0,3.23833953]
[1767427753077,0.001,3088.6,3088.3,2.41044134]
[1767427753242,0.001,3088.6,3088.1,5.64867072]
[1767427753438,0.001,3088.6,3087.9,0.00080056]
[1767427753439,2.38468701,3088.6,3088.2,0.56486707]
[1767427753639,2.38468701,3088.6,3087.9,2.4112419]
[1767427753869,2.38468701,3088.6,3088.0,3.2383352]
[1767427754064,2.38468701,3088.6,3088.0,5.64877654]
[1767427754670,0.001,3088.6,3088.0,8.8871185]
[1767427754968,0.001,3088.6,3088.1,2.41044134]
[1767427755169,0.001,3088.6,3088.2,0.88871185]
[1767427755949,0.001,3088.6,3088.3,3.23802739]
[1767427756171,0.001,3088.6,3088.4,2.44282056]
[1767427756369,0.001,3088.8,3088.4,2.44282056]
[1767427756570,0.001,3089.0,3088.5,2.41044134]
[1767427756772,0.001,3089.0,3088.6,2.6547234]
[1767427758172,0.001,3089.0,3088.6,5.89238403]
[1767427758768,0.001,3089.0,3088.7,2.41044134]
[1767427759266,0.001,3089.0,3088.7,2.44281742]
[1767427759675,0.85,3089.5,3089.0,2.41044134]
[1767427759676,0.001,3089.5,3089.0,2.41044134]
[1767427759875,0.001,3089.5,3089.1,0.24104413]
[1767427760247,0.001,3089.5,3089.1,5.64763016]
[1767427760474,0.001,3089.5,3089.0,2.41044134]
[1767427760780,0.001,3089.5,3089.0,5.64771915]
[1767427761006,0.001,3089.5,3089.1,3.23718882]
[1767427761282,0.001,3089.5,3089.1,5.64763016]
[1767427761483,0.001,3089.5,3089.1,6.53613149]
[1767427761880,0.001,3089.5,3089.2,2.41044134]
[1767427762256,0.001,3089.5,3089.1,0.88850133]
[1767427762684,0.001,3089.5,3089.1,4.12568036]
[1767427762881,0.001,3089.5,3089.2,3.23705788]
[1767427763067,0.001,3089.5,3089.2,3.97334129]
[1767427763478,0.001,3089.5,3089.2,0.73628341]
[1767427763666,0.001,3089.5,3089.1,3.23712219]
[1767427763979,0.001,3089.2,3089.1,3.23712219]
[1767427764281,0.001,3089.2,3089.1,5.64756353]
[1767427765383,0.001,3089.5,3089.1,5.64756353]
[1767427765690,0.001,3090.7,3089.7,2.41044134]
[1767427765884,2.38368701,3091.1,3090.4,0.00080112]
[1767427766261,2.38368701,3091.0,3090.4,0.00080112]
[1767427768491,2.38368701,3090.9,3090.4,0.00080112]
[1767427769995,5.6190148,3090.9,3090.4,0.00080112]
[1767427770297,2.41354284,3090.8,3090.4,0.00080112]
[1767427770468,2.41354284,3090.7,3090.4,0.00080112]
[1767427770668,2.41354284,3090.7,3089.9,0.0008012]
[1767427771786,2.41354284,3090.7,3089.9,3.23712175]
[1767427771987,2.41354284,3090.6,3089.9,0.0008012]
[1767427773508,2.41354284,3090.6,3090.0,1.1]
[1767427773715,2.41354284,3090.5,3090.0,1.1]
[1767427774093,2.41354284,3090.4,3090.0,1.1]
[1767427774513,3.26254284,3090.7,3090.0,1.1]
[1767427774682,2.41354284,3090.7,3090.0,4.33621928]
[1767427777527,2.41354284,3090.7,3090.0,6.69292531]
[1767427778316,2.41454284,3090.7,3090.0,6.69292531]
[1767427778783,5.65006339,3090.7,3090.0,3.45670603]
[1767427778983,6.89793583,3090.7,3090.0,3.45670603]
[1767427779192,2.41354284,3090.6,3090.0,1.1]
[1767427780412,2.41354284,3090.6,3090.0,4.33624467]
[1767427780784,2.41354284,3090.5,3090.0,1.1]
[1767427780989,2.97846329,3090.4,3090.0,1.1]
[1767427782016,2.41354284,3090.2,3089.3,0.03317099]
[1767427782219,2.41354284,3090.2,3089.4,3.23681612]
[1767427782516,2.41354284,3090.1,3089.3,5.59448648]
[1767427783796,2.41354284,3090.0,3089.3,2.35750723]
[1767427783990,2.41354284,3090.0,3089.3,0.0008012]
[1767427784997,1.24787323,3090.1,3089.4,2.35670603]
[1767427785201,2.41354284,3090.2,3089.3,0.03317099]
[1767427785202,0.849,3090.2,3089.6,2.35670603]
[1767427785410,0.849,3090.2,3089.6,2.5956134]
[1767427785595,0.0008012,3090.3,3089.8,2.35670603]
[1767427785921,0.0008012,3090.3,3089.9,2.38906953]
[1767427786288,0.0008012,3090.3,3089.7,2.35670603]
[1767427787100,0.0008012,3090.3,3089.9,2.35670603]
[1767427787307,0.0008012,3090.3,3090.1,2.35670603]
[1767427789221,0.001,3090.7,3090.3,2.35670603]
[1767427791326,0.001,3090.7,3090.4,3.23582707]
[1767427792019,0.001,3090.7,3090.0,3.23966772]
[1767427792200,0.001,3090.7,3090.0,2.38906848]
[1767427792526,0.001,3090.7,3090.3,3.23587677]
[1767427793312,0.001,3090.7,3090.2,6.472073]
[1767427794413,0.001,3090.7,3090.2,8.82877903]
[1767427799343,0.001,3090.7,3090.4,1.1]
[1767427799512,0.001,3090.7,3090.5,2.34030455]
[1767427800141,0.001,3090.7,3090.4,1.1]
[1767427800516,2.3197083,3090.7,3090.4,1.1]
[1767427802041,0.001,3090.7,3090.4,4.33580606]
[1767427802530,0.001,3090.7,3090.4,1.1]
[1767427802730,0.001,3090.7,3090.4,4.33577529]
[1767427804139,0.001,3090.7,3090.5,2.34030455]
[1767427804342,0.001,3091.0,3090.7,2.34030455]
[1767427804534,0.001,3091.0,3090.8,3.2354083]
[1767427805225,0.001,3091.0,3090.5,2.34030455]
[1767427805427,2.3197083,3091.0,3090.4,1.1008012]
[1767427805611,2.3197083,3091.0,3090.5,3.23564618]
[1767427806148,2.3197083,3091.0,3090.6,3.23557963]
[1767427806546,0.001,3091.0,3090.6,2.37266072]
[1767427806845,0.001,3091.0,3090.7,2.34030455]
[1767427807418,0.001,3091.0,3090.6,1.31806901]
[1767427808145,2.3197083,3091.0,3090.6,1.31806901]
[1767427808339,2.3197083,3091.0,3090.5,6.47143894]
[1767427810251,2.15074335,3091.1,3090.5,6.47143894]
[1767427810551,0.85,3091.2,3090.6,2.34030455]
[1767427811553,0.001,3091.0,3090.6,2.34030455]
[1767427813154,0.001,3091.0,3090.7,5.57581754]
[1767427814730,0.001,3091.0,3090.7,2.34030455]
[1767427814924,0.001,3091.0,3090.5,0.002]
[1767427815523,1.480132,3091.0,3090.6,2.34030455]
[1767427815724,0.85,3091.2,3090.8,2.34030455]
[1767427816471,0.00180064,3091.6,3091.1,2.34030455]
[1767427817053,0.00180064,3091.6,3090.9,2.34110543]
[1767427817257,2.15254399,3091.6,3090.9,5.8104488]
[1767427818331,2.15254399,3091.6,3090.9,2.34110543]
[1767427818532,2.15254399,3091.6,3090.9,5.57640567]
[1767427818747,0.00180064,3091.6,3091.0,2.34030455]
[1767427819066,0.00180064,3091.6,3091.2,2.34030455]
[1767427819367,0.00180064,3091.6,3091.3,3.23488499]
[1767427819923,0.00180064,3091.6,3091.2,5.57525584]
[1767427821254,0.00180064,3091.6,3091.4,3.23478035]
[1767427821553,0.00180064,3091.6,3091.4,5.5750849]
[1767427822053,0.001,3091.7,3091.6,2.34030455]
[1767427822639,0.001,3091.7,3091.3,0.03234884]
[1767427822835,2.15354399,3091.7,3091.2,3.23578804]
[1767427823259,2.15354399,3091.7,3091.3,3.23487936]
[1767427823634,0.001,3091.7,3091.3,3.23487936]
[1767427823842,0.001,3091.7,3091.4,2.34030455]
[1767427824861,0.001,3091.7,3091.4,2.34030404]
[1767427825227,0.001,3091.7,3091.2,3.88607461]
[1767427825433,0.001,3091.7,3091.2,0.00080072]
[1767427825733,0.001,3091.7,3091.2,2.34110527]
[1767427826164,2.15174378,3091.4,3090.9,0.00080088]
[1767427826359,2.74233177,3091.1,3090.5,2.34230455]
[1767427826537,2.74233177,3091.1,3090.3,0.03435931]
[1767427826538,3.59033177,3091.1,3090.3,0.03435931]
[1767427826739,2.74313297,3090.8,3090.3,0.002]
[1767427826938,2.74313297,3090.8,3090.0,0.03436245]
[1767427826939,2.15174378,3090.7,3090.0,0.03436245]
[1767427827175,2.15174378,3090.7,3090.1,0.23754683]
[1767427827375,5.38729531,3090.7,3090.0,0.002]
[1767427827575,2.15174378,3090.7,3090.0,0.002]
[1767427828859,2.15174378,3090.7,3090.0,2.34230455]
[1767427829157,2.74313297,3090.8,3090.0,2.34230455]
[1767427829365,2.74313297,3090.8,3090.0,2.374667]
[1767427829663,0.0008012,3090.8,3090.2,2.4702915]
[1767427830237,2.10254498,3090.6,3090.4,0.00080128]
[1767427830434,2.10254498,3090.6,3090.0,3.23822086]
[1767427831262,2.10254498,3090.6,3090.0,6.47446681]
[1767427831444,0.00080128,3090.8,3090.1,0.03236141]
[1767427831970,0.00080128,3090.8,3090.2,2.50265186]
[1767427832177,0.00080128,3090.8,3090.4,2.4702915]
[1767427832476,0.00080128,3090.8,3090.5,0.03235722]
[1767427833474,0.00080128,3090.8,3090.4,2.50264977]
[1767427833880,0.00080128,3090.8,3090.5,5.70601387]
[1767427834170,0.00080128,3090.8,3090.5,6.7134397]
[1767427835572,0.00080128,3090.8,3090.6,5.70586005]
[1767427836192,0.00080128,3090.8,3090.7,2.4702915]
[1767427837804,0.00080128,3090.8,3090.5,3.47971733]
[1767427838008,0.00080128,3090.8,3090.5,5.70794086]
[1767427838181,0.00080128,3090.8,3090.5,0.002]
[1767427839203,0.00080128,3090.8,3090.6,3.23561037]
[1767427839494,0.00080128,3090.8,3090.3,1.1]
[1767427839495,2.10334626,3090.8,3090.3,1.1]
[1767427840914,2.10254498,3090.7,3090.3,1.1]
[1767427842313,1.00254498,3090.6,3090.0,0.002]
[1767427842516,1.00334626,3090.3,3089.6,3.2366049]
[1767427844328,3.2360365,3090.2,3089.5,2.4722915]
[1767427844485,1.00254498,3090.1,3089.5,0.002]
[1767427845889,0.0008012,3089.7,3089.2,0.002]
[1767427846786,0.0008012,3089.7,3089.2,2.4722915]
[1767427848623,0.0008012,3089.7,3089.2,5.70935223]
[1767427848826,0.0008012,3089.7,3089.2,6.60421276]
[1767427850930,0.0008012,3089.7,3089.3,2.4702915]
[1767427851087,0.0008012,3089.7,3089.4,0.03236874]
[1767427851293,0.0008012,3089.7,3089.5,2.4702915]
[1767427851493,0.0008012,3089.7,3089.6,2.50265814]
[1767427851813,0.0008012,3089.7,3089.6,0.03236664]
[1767427851994,0.0008012,3089.7,3089.4,2.4702915]
[1767427852194,0.0008012,3089.7,3089.4,3.45765816]
[1767427853126,0.0008012,3089.7,3089.5,2.4702915]
[1767427855924,0.0008012,3089.7,3089.2,0.002]
[1767427856434,0.0008012,3089.7,3089.2,2.4722915]
[1767427857849,0.0008012,3089.7,3089.4,2.4702915]
[1767427858144,0.0008012,3089.7,3089.4,2.71752065]
[1767427860151,0.0008012,3089.7,3089.4,5.95437546]
[1767427861207,0.0018012,3089.7,3089.4,5.95437546]
[1767427862207,0.0018012,3089.7,3089.4,2.71752065]
[1767427862631,0.0018012,3089.7,3089.4,5.95434881]
[1767427862938,0.00018292,3089.7,3089.5,0.59543488]
[1767427863138,0.00018292,3089.7,3089.4,2.71752065]
[1767427866411,0.00018292,3089.7,3089.4,0.24722915]
[1767427868343,0.00018292,3089.7,3089.4,3.48410351]
[1767427868787,0.00018292,3089.7,3089.4,5.76277279]
[1767427869633,0.00018292,3089.7,3089.4,5.76477279]
[1767427870240,0.00018292,3089.7,3089.5,2.85522669]
[1767427871041,0.00018292,3089.7,3089.6,2.27866928]
[1767427871924,0.00080128,3090.3,3089.7,2.27866928]
[1767427872118,0.00080128,3090.3,3089.9,2.27866928]
[1767427873262,0.00080128,3090.3,3089.7,2.27866928]
[1767427873463,4.23929262,3090.3,3089.7,2.27866928]
[1767427873662,1.00254498,3090.2,3089.4,5.76471579]
[1767427873867,1.00254498,3090.2,3089.5,3.23674361]
[1767427874169,1.00254498,3090.2,3089.5,5.51541289]
[1767427875071,0.00080128,3090.3,3089.6,2.27866928]
[1767427875239,0.00080128,3090.3,3089.8,2.27866928]
[1767427875774,0.00080128,3090.3,3089.9,2.31103278]
[1767427876372,0.00080128,3090.3,3089.9,5.54729056]
[1767427876548,0.00080128,3090.3,3089.9,5.51492706]
[1767427877156,1.00334626,3090.3,3089.7,0.87845503]
[1767427877471,1.00434626,3090.3,3089.8,3.23638948]
[1767427877981,0.00180128,3090.3,3089.9,5.51500274]
[1767427878165,0.00180128,3090.3,3090.0,2.31103173]
[1767427878476,0.00180128,3090.3,3090.2,2.27866928]
[1767427878683,0.00180128,3090.3,3090.2,3.15700082]
[1767427880244,0.00180128,3090.3,3090.1,3.23614122]
[1767427880450,0.00180128,3090.3,3089.7,5.51522946]
[1767427880650,0.00180128,3090.3,3089.8,2.27866928]
[1767427881558,0.00180128,3090.3,3089.8,2.31103383]
[1767427882571,0.00180128,3090.3,3090.0,2.27866928]
[1767427882771,0.00180128,3090.3,3090.1,3.15380635]
[1767427883549,0.00180128,3090.3,3090.2,0.03236036]
[1767427883784,0.00180128,3090.3,3090.1,3.15380635]
[1767427884162,0.00180128,3090.3,3090.2,0.03236036]
[1767427884374,0.00180128,3090.3,3090.1,3.15380635]
[1767427884567,0.00180128,3090.3,3090.2,0.31538064]
[1767427884770,0.00180128,3090.3,3090.2,3.55141714]
[1767427885276,0.00180128,3090.3,3090.2,0.31538064]
[1767427885447,0.00180128,3090.3,3089.6,0.002]
[1767427885647,0.00180128,3090.3,3089.7,2.27866928]
[1767427885849,0.00180128,3090.3,3090.0,3.23620013]
[1767427886050,0.00180128,3090.3,3089.9,3.23633274]
[1767427887251,0.00180128,3090.3,3089.8,3.23645543]
[1767427887981,1.00434626,3090.3,3089.8,3.23645543]
[1767427888352,1.00434626,3090.3,3089.8,7.34827773]
[1767427888560,0.00180128,3090.3,3089.9,2.27866928]
[1767427889884,0.00180128,3090.3,3090.0,3.23624595]
[1767427890079,0.00180128,3090.3,3090.0,5.49702125]
[1767427890280,1.85334626,3090.8,3090.1,2.29313671]
[1767427890485,1.85334626,3090.8,3090.1,2.2607753]
[1767427890655,5.08875765,3090.8,3090.1,2.2607753]
[1767427892493,1.85334626,3090.8,3090.2,5.4968118]
[1767427892661,0.85080128,3090.8,3090.3,2.2607753]
[1767427892857,0.85080128,3090.8,3090.4,0.03235827]
[1767427893050,0.85080128,3090.8,3090.2,3.2360365]
[1767427893051,1.00254498,3090.7,3090.2,3.2360365]
[1767427893359,0.85080128,3090.8,3090.2,2.2607753]
[1767427893573,0.85080128,3090.8,3090.3,2.2607753]
[1767427894057,0.00180128,3090.8,3090.5,2.2607753]
[1767427894966,0.00180128,3090.8,3090.5,2.29313252]
[1767427895179,0.00180128,3090.8,3090.5,2.2607753]
[1767427896496,0.00180128,3090.8,3090.2,6.45742424]
[1767427896663,1.00434626,3090.8,3090.2,5.49678215]
[1767427896859,1.00434626,3090.8,3090.2,3.23600685]
[1767427897079,0.00180128,3090.8,3090.2,5.49678215]
[1767427897285,0.00180128,3090.8,3090.2,6.3700746]
[1767427897583,0.00180128,3090.8,3090.3,2.2607753]
[1767427899489,0.00180128,3090.8,3090.3,2.2627753]
[1767427900169,0.00180128,3090.8,3090.3,5.49869898]
[1767427904285,1.00434626,3090.8,3090.3,0.002]
[1767427904691,1.00434626,3090.8,3090.0,3.23617994]
[1767427904883,1.00054498,3090.6,3090.0,3.23617994]
[1767427905901,1.00054498,3090.6,3090.1,3.23613714]
[1767427906392,1.00054498,3090.6,3090.3,0.002]
[1767427906598,1.00054498,3090.5,3090.3,0.002]
[1767427906763,1.00054498,3090.5,3089.9,0.00080136]
[1767427906963,1.50906205,3090.4,3089.9,0.00080136]
[1767427907178,1.00054498,3090.3,3089.9,0.00080136]
[1767427910568,1.00054498,3090.2,3089.9,0.00080136]
[1767427910881,4.23662619,3090.2,3089.9,0.00080136]
[1767427911078,1.00054498,3090.1,3089.9,0.00080136]
[1767427911270,1.74781572,3090.0,3089.9,0.00080136]
[1767427913296,4.98406167,3090.0,3089.6,0.002]
[1767427913498,4.98406167,3090.0,3089.9,0.002]
[1767427913695,3.98351669,3090.0,3089.9,0.002]
[1767427915796,0.849,3090.2,3089.9,2.2627753]
[1767427916812,0.00080136,3090.3,3089.9,2.2627753]
[1767427917006,0.849,3090.2,3089.9,2.2627753]
[1767427917316,0.84980136,3090.3,3089.9,2.2627753]
[1767427918997,4.08576171,3090.3,3089.9,2.2627753]
[1767427921826,4.81791281,3090.3,3089.9,0.002]
[1767427922297,8.05387316,3090.3,3089.9,0.002]
[1767427922675,1.00054498,3090.2,3089.9,0.002]
[1767427923111,3.23614122,3090.1,3089.9,0.002]
[1767427923904,4.23661554,3090.2,3089.9,0.002]
[1767427924114,5.14205776,3090.2,3089.9,0.002]
[1767427925107,4.14151278,3090.2,3089.9,0.002]
[1767427929127,0.90544222,3090.2,3089.9,0.002]
[1767427929328,1.58295246,3090.3,3089.9,0.002]
[1767427929804,4.8188971,3090.3,3089.9,0.002]
[1767427930719,0.85080136,3090.3,3089.9,2.3638761]
[1767427931515,4.08674843,3090.3,3089.9,2.3638761]
[1767427932601,5.08729341,3090.3,3089.9,0.002]
[1767427932809,3.23614122,3090.1,3089.9,0.002]
[1767427936798,4.23662408,3090.2,3089.9,0.002]
[1767427937001,0.83233768,3090.2,3089.9,0.002]
[1767427937203,4.08676218,3090.3,3089.9,0.002]
[1767427939028,4.08676218,3090.3,3089.9,2.3638761]
[1767427939194,0.85080136,3090.3,3089.9,2.3638761]
[1767427944527,4.08674177,3090.3,3089.9,2.3638761]
[1767427944833,4.44649699,3090.3,3089.9,2.3638761]
[1767427948322,0.85080136,3090.3,3089.9,2.3638761]